fUST/lending_fUST_20241223
["ID","MTS","AMOUNT","RATE_DAILY","PERIOD"]
[346318565,1734887450176,-500.0,0.00013698,2]
[346318566,1734887450185,-500.0,0.00013698,2]
[346318567,1734887450195,-500.0,0.00013698,2]
[346318568,1734887450206,-500.0,0.00013698,2]
[346318569,1734887450215,-500.0,0.00013698,2]
[346318570,1734887450224,-500.0,0.00013698,2]
[346318571,1734887450234,-500.0,0.00013698,2]
[346318572,1734887450244,-500.0,0.00013698,2]
[346318573,1734887450253,-624.16598017,0.00013698,2]
[346318574,1734887450262,-553.69,0.00013698,2]
[346318575,1734887450273,-500.0,0.00013698,2]
[346318576,1734887450283,-783.11,0.00013698,2]
[346318577,1734887450293,-620.19,0.00013698,2]
[346318578,1734887450303,-500.0,0.00013698,2]
[346318579,1734887450313,-500.0,0.00013698,2]
[346318580,1734887450323,-500.0,0.00013698,2]
[346318581,1734887450332,-1341.78,0.00013698,2]
[346318582,1734887450342,-500.0,0.00013698,2]
[346318583,1734887450351,-970.84,0.00013698,2]
[346318584,1734887450362,-500.3,0.00013698,2]
[346318585,1734887450371,-500.0,0.00013698,2]
[346318586,1734887450380,-227.419812,0.00013698,2]
[346318587,1734887450390,-1153.14,0.00013698,2]
[346318588,1734887450399,-1294.51,0.00013698,2]
[346318589,1734887450409,-5312.49,0.00013698,2]
[346318590,1734887450419,-6742.83,0.00013698,2]
[346318591,1734887450427,-500.0,0.00013698,2]
[346318592,1734887450437,-559.29,0.00013698,2]
[346318593,1734887450447,-2306.23,0.00013698,2]
[346318594,1734887450457,-3201.84,0.00013698,2]
[346318595,1734887450466,-500.0,0.00013698,2]
[346318596,1734887450476,-500.0,0.00013698,2]
[346318597,1734887450486,-1498.56,0.00013698,2]
[346318598,1734887450496,-151.0,0.00013698,2]
[346318599,1734887450506,-151.0,0.00013698,2]
[346318600,1734887450515,-151.0,0.00013698,2]
[346318601,1734887450526,-500.0,0.00013698,2]
[346318602,1734887450536,-151.0,0.00013698,2]
[346318603,1734887450546,-5740.73,0.00013698,2]
[346318604,1734887450555,-151.0,0.00013698,2]
[346318605,1734887450564,-151.0,0.00013698,2]
[346318606,1734887450574,-614.16,0.00013698,2]
[346318607,1734887450583,-151.0,0.00013698,2]
[346318608,1734887450594,-151.0,0.00013698,2]
[346318609,1734887450604,-230.328016,0.00013698,2]
[346318610,1734887450613,-500.0,0.00013698,2]
[346318611,1734887450624,-500.0,0.00013698,2]
[346318612,1734887450634,-500.0,0.00013698,2]
[346318613,1734887450643,-2682.64,0.00013698,2]
[346318614,1734887450653,-500.0,0.00013698,2]
[346318615,1734887450662,-2893.66,0.00013698,2]
[346318616,1734887450673,-1537.35,0.00013698,2]
[346318617,1734887450683,-1213.96,0.00013698,2]
[346318618,1734887450693,-500.0,0.00013698,2]
[346318619,1734887450702,-500.0,0.00013698,2]
[346318620,1734887450712,-1451.45,0.00013698,2]
[346318621,1734887450722,-500.0,0.00013698,2]
[346318622,1734887450731,-1271.72,0.00013698,2]
[346318623,1734887450741,-500.0,0.00013698,2]
[346318624,1734887450752,-500.0,0.00013698,2]
[346318625,1734887450762,-569.28,0.00013698,2]
[346318626,1734887450773,-500.0,0.00013698,2]
[346318627,1734887450783,-4198.65,0.00013698,2]
[346318628,1734887450793,-638.14822472,0.00013698,2]
[346318629,1734887450802,-2636.35,0.00013698,2]
[346318630,1734887450811,-617.29,0.00013698,2]
[346318631,1734887450821,-965.72,0.00013698,2]
[346318632,1734887450831,-948.65,0.00013698,2]
[346318633,1734887450840,-309.404693,0.00013698,2]
[346318634,1734887450850,-309.404693,0.00013698,2]
[346318635,1734887450859,-309.404693,0.00013698,2]
[346318636,1734887450869,-500.0,0.00013698,2]
[346318637,1734887450878,-309.404693,0.00013698,2]
[346318638,1734887450888,-498.119133,0.00013699,2]
[346318639,1734887450898,-214.0101375,0.000137,2]
[346318640,1734887450907,-10529.99999999,0.00013828,2]
[346318641,1734887450916,-151.0,0.00013828,2]
[346318642,1734887450926,-206.7114874,0.00013832,2]
[346318643,1734887450936,-151.0,0.00013872,2]
[346318644,1734887450945,-390.48662,0.00013872,2]
[346318645,1734887450954,-390.48662,0.00013872,2]
[346318646,1734887450964,-666.0,0.00013872,2]
[346318647,1734887450974,-2000.0,0.000139,2]
[346318648,1734887450984,-151.0,0.000139,2]
[346318649,1734887450993,-152.0,0.0001391,2]
[346318650,1734887451004,-196.99306343,0.00013971,2]
[346318651,1734887451014,-151.0,0.00013972,2]
[346318652,1734887451023,-153.840585,0.00013972,2]
[346318653,1734887451033,-168.895361,0.00013972,2]
[346318654,1734887451042,-500.0,0.00013972,2]
[346318655,1734887451052,-795.34,0.00013972,2]
[346318656,1734887451062,-649.12,0.00013972,2]
[346318657,1734887451071,-680.46,0.00013972,2]
[346318658,1734887451080,-500.0,0.00013972,2]
[346318659,1734887451089,-244.0586239,0.00013972,2]
[346318660,1734887451099,-500.0,0.00013972,2]
[346318661,1734887451109,-500.0,0.00013972,2]
[346318662,1734887451118,-539.66,0.00013972,2]
[346318663,1734887451127,-500.0,0.00013972,2]
[346318664,1734887451136,-500.0,0.00013972,2]
[346318665,1734887451146,-500.0,0.00013972,2]
[346318666,1734887451156,-500.0,0.00013972,2]
[346318667,1734887451166,-660.75,0.00013972,2]
[346318668,1734887451176,-415.21764096,0.00013972,2]
[346318669,1734887451185,-390.48662,0.00013972,2]
[346318670,1734887451194,-390.48662,0.00013972,2]
[346318671,1734887451204,-390.48662,0.00013972,2]
[346318672,1734887451213,-1445.077543,0.00013972,2]
[346318673,1734887451223,-390.48662,0.00013972,2]
[346318674,1734887451232,-1445.077543,0.00013972,2]
[346318675,1734887451242,-1445.077543,0.00013972,2]
[346318676,1734887451251,-1445.077551,0.00013972,2]
[346318677,1734887451262,-606.89,0.00013972,2]
[346318678,1734887451271,-390.48662,0.00013972,2]
[346318679,1734887451280,-390.48662,0.00013972,2]
[346318680,1734887451291,-774.89,0.00013972,2]
[346318681,1734887451300,-390.48662,0.00013972,2]
[346318682,1734887451309,-390.486624,0.00013972,2]
[346318683,1734887451319,-500.0,0.00013972,2]
[346318684,1734887451329,-500.0,0.00013972,2]
[346318685,1734887451338,-500.0,0.00013972,2]
[346318686,1734887451347,-837.53,0.00013972,2]
[346318687,1734887451358,-500.0,0.00013972,2]
[346318688,1734887451367,-500.0,0.00013972,2]
[346318689,1734887451377,-500.0,0.00013972,2]
[346318690,1734887451386,-500.0,0.00013972,2]
[346318691,1734887451395,-151.0,0.00013972,2]
[346318692,1734887451405,-151.0,0.00013972,2]
[346318693,1734887451414,-151.0,0.00013972,2]
[346318694,1734887451423,-500.0,0.00013972,2]
[346318695,1734887451434,-500.0,0.00013972,2]
[346318696,1734887451443,-500.0,0.00013972,2]
[346318697,1734887451453,-500.0,0.00013972,2]
[346318698,1734887451463,-500.0,0.00013972,2]
[346318699,1734887451474,-500.0,0.00013972,2]
[346318700,1734887451483,-191.849861,0.00013972,2]
[346318701,1734887451494,-500.0,0.00013972,2]
[346318702,1734887451503,-500.0,0.00013972,2]
[346318703,1734887451513,-500.0,0.00013972,2]
[346318704,1734887451522,-500.0,0.00013972,2]
[346318705,1734887451531,-500.0,0.00013972,2]
[346318706,1734887451540,-798.26,0.00013972,2]
[346318707,1734887451550,-556.3,0.00013972,2]
[346318708,1734887451560,-500.0,0.00013972,2]
[346318709,1734887451569,-500.0,0.00013972,2]
[346318710,1734887451578,-500.0,0.00013972,2]
[346318711,1734887451589,-500.0,0.00013972,2]
[346318712,1734887451602,-587.19,0.00013972,2]
[346318713,1734887451612,-500.0,0.00013972,2]
[346318714,1734887451622,-500.0,0.00013972,2]
[346318715,1734887451631,-500.0,0.00013972,2]
[346318716,1734887451642,-615.36,0.00013972,2]
[346318717,1734887451652,-560.21,0.00013972,2]
[346318718,1734887451662,-727.37,0.00013972,2]
[346318719,1734887451671,-566.32,0.00013972,2]
[346318720,1734887451680,-500.0,0.00013972,2]
[346318721,1734887451689,-500.0,0.00013972,2]
[346318722,1734887451699,-500.0,0.00013972,2]
[346318723,1734887451709,-500.0,0.00013972,2]
[346318724,1734887451718,-500.0,0.00013972,2]
[346318725,1734887451727,-559.67,0.00013972,2]
[346318726,1734887451737,-500.0,0.00013972,2]
[346318727,1734887451746,-687.12,0.00013972,2]
[346318728,1734887451755,-1124.46,0.00013972,2]
[346318729,1734887451765,-500.0,0.00013972,2]
[346318730,1734887451775,-500.0,0.00013972,2]
[346318731,1734887451784,-500.0,0.00013972,2]
[346318732,1734887451794,-500.0,0.00013972,2]
[346318733,1734887451803,-500.0,0.00013972,2]
[346318734,1734887451813,-500.0,0.00013972,2]
[346318735,1734887451823,-813.33,0.00013972,2]
[346318736,1734887451832,-732.09,0.00013972,2]
[346318737,1734887451841,-500.0,0.00013972,2]
[346318738,1734887451850,-500.0,0.00013972,2]
[346318739,1734887451859,-500.0,0.00013972,2]
[346318740,1734887451869,-500.0,0.00013972,2]
[346318741,1734887451878,-2332.55,0.00013972,2]
[346318742,1734887451887,-1000.0,0.00013972,2]
[346318743,1734887451896,-500.0,0.00013972,2]
[346318744,1734887451906,-251.18,0.00013972,2]
[346318745,1734887451915,-500.0,0.00013972,2]
[346318746,1734887451925,-500.0,0.00013972,2]
[346318747,1734887451934,-500.0,0.00013972,2]
[346318748,1734887451944,-500.0,0.00013972,2]
[346318749,1734887451953,-500.0,0.00013972,2]
[346318750,1734887451962,-1508.63,0.00013972,2]
[346318751,1734887451972,-473.65150385,0.00013972,2]
[346318752,1734887451981,-500.0,0.00013972,2]
[346318753,1734887451990,-500.0,0.00013972,2]
[346318754,1734887452000,-500.0,0.00013972,2]
[346318755,1734887452010,-167.62723,0.00013972,2]
[346318756,1734887452020,-167.62723,0.00013972,2]
[346318757,1734887452030,-167.62723,0.00013972,2]
[346318758,1734887452039,-167.627238,0.00013972,2]
[346318759,1734887452048,-500.0,0.00013972,2]
[346318760,1734887452058,-848.04,0.00013972,2]
[346318761,1734887452067,-500.0,0.00013972,2]
[346318762,1734887452077,-500.0,0.00013972,2]
[346318763,1734887452086,-500.0,0.00013972,2]
[346318764,1734887452095,-4458.06,0.00013972,2]
[346318765,1734887452104,-500.0,0.00013972,2]
[346318766,1734887452114,-500.0,0.00013972,2]
[346318767,1734887452124,-1636.14,0.00013972,2]
[346318768,1734887452134,-500.0,0.00013972,2]
[346318769,1734887452143,-882.53,0.00013972,2]
[346318770,1734887452153,-2304.43,0.00013972,2]
[346318771,1734887452162,-155.847884,0.00013972,2]
[346318772,1734887452171,-155.847884,0.00013972,2]
[346318773,1734887452181,-155.847883,0.00013972,2]
[346318774,1734887452191,-577.32,0.00013972,2]
[346318775,1734887452200,-500.0,0.00013972,2]
[346318776,1734887452209,-1501.51,0.00013972,2]
[346318777,1734887452218,-1876.72,0.00013972,2]
[346318778,1734887452227,-500.0,0.00013972,2]
[346318779,1734887452237,-1313.5,0.00013972,2]
[346318780,1734887452246,-1406.88,0.00013972,2]
[346318781,1734887452256,-1148.23,0.00013972,2]
[346318782,1734887452265,-1516.08,0.00013972,2]
[346318783,1734887452275,-500.0,0.00013972,2]
[346318784,1734887452285,-272.73617,0.00013972,2]
[346318785,1734887452294,-272.73617,0.00013972,2]
[346318786,1734887452304,-272.73617,0.00013972,2]
[346318787,1734887452313,-272.73617,0.00013972,2]
[346318788,1734887452322,-1293.95,0.00013972,2]
[346318789,1734887452331,-272.73617,0.00013972,2]
[346318790,1734887452341,-272.73617,0.00013972,2]
[346318791,1734887452350,-500.0,0.00013972,2]
[346318792,1734887452359,-272.73617,0.00013972,2]
[346318793,1734887452369,-500.0,0.00013972,2]
[346318794,1734887452378,-272.736178,0.00013972,2]
[346318795,1734887452387,-612.54,0.00013972,2]
[346318796,1734887452397,-500.0,0.00013972,2]
[346318797,1734887452407,-500.0,0.00013972,2]
[346318798,1734887452416,-775.35,0.00013972,2]
[346318799,1734887452426,-639.81,0.00013972,2]
[346318800,1734887452436,-925.65,0.00013972,2]
[346318801,1734887452445,-500.0,0.00013972,2]
[346318802,1734887452455,-500.0,0.00013972,2]
[346318803,1734887452464,-500.0,0.00013972,2]
[346318804,1734887452474,-500.0,0.00013972,2]
[346318805,1734887452483,-500.0,0.00013972,2]
[346318806,1734887452492,-500.0,0.00013972,2]
[346318807,1734887452502,-1486.47,0.00013972,2]
[346318808,1734887452511,-500.0,0.00013972,2]
[346318809,1734887452523,-500.0,0.00013972,2]
[346318810,1734887452532,-500.0,0.00013972,2]
[346318811,1734887452542,-252.410892,0.00013972,2]
[346318812,1734887452551,-252.410892,0.00013972,2]
[346318813,1734887452561,-184.15476,0.00013972,2]
[346318814,1734887452570,-252.410892,0.00013972,2]
[346318815,1734887452580,-184.15476,0.00013972,2]
[346318816,1734887452591,-184.15476,0.00013972,2]
[346318817,1734887452602,-599.84,0.00013972,2]
[346318818,1734887452612,-252.410892,0.00013972,2]
[346318819,1734887452621,-252.410892,0.00013972,2]
[346318820,1734887452630,-252.410884,0.00013972,2]
[346318821,1734887452641,-184.15476,0.00013972,2]
[346318822,1734887452651,-184.15476,0.00013972,2]
[346318823,1734887452660,-184.154769,0.00013972,2]
[346318824,1734887452670,-500.0,0.00013972,2]
[346318825,1734887452680,-500.0,0.00013972,2]
[346318826,1734887452689,-530.04,0.00013972,2]
[346318827,1734887452699,-500.0,0.00013972,2]
[346318828,1734887452708,-1084.28,0.00013972,2]
[346318829,1734887452717,-209.557774,0.00013972,2]
[346318830,1734887452726,-500.0,0.00013972,2]
[346318831,1734887452735,-326.7061,0.00013972,2]
[346318832,1734887452745,-326.7061,0.00013972,2]
[346318833,1734887452754,-326.7061,0.00013972,2]
[346318834,1734887452763,-500.0,0.00013972,2]
[346318835,1734887452774,-326.7061,0.00013972,2]
[346318836,1734887452784,-743.43,0.00013972,2]
[346318837,1734887452793,-326.7061,0.00013972,2]
[346318838,1734887452803,-326.706092,0.00013972,2]
[346318839,1734887452812,-630.65,0.00013972,2]
[346318840,1734887452822,-185.42845574,0.00013972,2]
[346318841,1734887452831,-615.48,0.00013972,2]
[346318842,1734887452840,-837.83,0.00013972,2]
[346318843,1734887452850,-573.42,0.00013972,2]
[346318844,1734887452859,-500.0,0.00013972,2]
[346318845,1734887452868,-1727.19,0.00013972,2]
[346318846,1734887452878,-500.0,0.00013972,2]
[346318847,1734887452887,-1309.4,0.00013972,2]
[346318848,1734887452897,-506.43304868,0.00013972,2]
[346318849,1734887452906,-500.0,0.00013972,2]
[346318850,1734887452915,-500.0,0.00013972,2]
[346318851,1734887452925,-364.61455158,0.00013972,2]
[346318852,1734887452935,-500.0,0.00013972,2]
[346318853,1734887452944,-500.0,0.00013972,2]
[346318854,1734887452954,-1930.02,0.00013972,2]
[346318855,1734887452963,-500.0,0.00013972,2]
[346318856,1734887452973,-748.86,0.00013972,2]
[346318857,1734887452982,-580.58399952,0.00013972,2]
[346318858,1734887452992,-501.83,0.00013972,2]
[346318859,1734887453001,-1343.55,0.00013972,2]
[346318860,1734887453011,-500.0,0.00013972,2]
[346318861,1734887453021,-500.0,0.00013972,2]
[346318862,1734887453030,-500.0,0.00013972,2]
[346318863,1734887453040,-2640.79,0.00013972,2]
[346318864,1734887453050,-505.05,0.00013972,2]
[346318865,1734887453059,-734.18,0.00013972,2]
[346318866,1734887453069,-500.0,0.00013972,2]
[346318867,1734887453078,-500.0,0.00013972,2]
[346318868,1734887453087,-500.0,0.00013972,2]
[346318869,1734887453096,-696.12,0.00013972,2]
[346318870,1734887453106,-1268.71,0.00013972,2]
[346318871,1734887453115,-500.0,0.00013972,2]
[346318872,1734887453124,-500.0,0.00013972,2]
[346318873,1734887453134,-191.738586,0.00013972,2]
[346318874,1734887453143,-191.738586,0.00013972,2]
[346318875,1734887453152,-191.738586,0.00013972,2]
[346318876,1734887453162,-1304.36,0.00013972,2]
[346318877,1734887453171,-500.0,0.00013972,2]
[346318878,1734887453180,-151.0,0.00013972,2]
[346318879,1734887453189,-151.0,0.00013972,2]
[346318880,1734887453198,-151.0,0.00013972,2]
[346318881,1734887453209,-191.738586,0.00013972,2]
[346318882,1734887453219,-191.738586,0.00013972,2]
[346318883,1734887453228,-191.738596,0.00013972,2]
[346318884,1734887453238,-500.0,0.00013972,2]
[346318885,1734887453247,-1839.62,0.00013972,2]
[346318886,1734887453257,-393.08855799,0.00013972,2]
[346318887,1734887453266,-895.9,0.00013972,2]
[346318888,1734887453276,-2477.02,0.00013972,2]
[346318889,1734887453286,-500.0,0.00013972,2]
[346318890,1734887453295,-500.0,0.00013972,2]
[346318891,1734887453304,-500.0,0.00013972,2]
[346318892,1734887453314,-736.79,0.00013972,2]
[346318893,1734887453323,-500.0,0.00013972,2]
[346318894,1734887453332,-500.0,0.00013972,2]
[346318895,1734887453342,-617.85,0.00013972,2]
[346318896,1734887453352,-857.24,0.00013972,2]
[346318897,1734887453362,-500.0,0.00013972,2]
[346318898,1734887453372,-508.62516281,0.00013972,2]
[346318899,1734887453381,-500.0,0.00013972,2]
[346318900,1734887453542,-624.07,0.00013972,2]
[346318901,1734887453552,-500.0,0.00013972,2]
[346318902,1734887453562,-500.0,0.00013972,2]
[346318903,1734887453572,-1287.25,0.00013972,2]
[346318904,1734887453582,-151.0,0.00013972,2]
[346318905,1734887453593,-151.0,0.00013972,2]
[346318906,1734887453604,-151.0,0.00013972,2]
[346318907,1734887453613,-4799.07,0.00013972,2]
[346318908,1734887453623,-500.0,0.00013972,2]
[346318909,1734887453632,-155.16349085,0.00013972,2]
[346318910,1734887453641,-544.49333269,0.00013972,2]
[346318911,1734887453651,-500.0,0.00013972,2]
[346318912,1734887453660,-2237.72,0.00013972,2]
[346318913,1734887453670,-1220.27,0.00013972,2]
[346318914,1734887453680,-500.0,0.00013972,2]
[346318915,1734887453689,-144.02520184,0.00013972,2]
[346318933,1734888545130,-506.3413837,0.00011761,2]
[346318934,1734888545151,-473.2274163,0.00012,2]
[346318935,1734888545178,-33.1139674,0.00012,2]
[346318936,1734888560156,-326.928,0.00013137,2]
[346318937,1734888560179,-326.928,0.0001327,2]
[346318951,1734888571175,300.0,0.00013276,2]
[346318952,1734888587662,176.2114,0.00013276,2]
[346318969,1734888632717,-123.7886,0.00013276,2]
[346318970,1734888632727,-6537.41945511,0.00013411,2]
[346318988,1734888638629,-2267.95971721,0.00013411,2]
[346318990,1734888638638,-500.0,0.000135,2]
[346318992,1734888638647,-300.0,0.00013597,2]
[346318994,1734888638656,-300.0,0.00013597,2]
[346318996,1734888638665,-180.56310664,0.00013598,2]
[346318998,1734888638675,-666.0,0.00013598,2]
[346319000,1734888638684,-500.0,0.000136,2]
[346319002,1734888638693,-7531.227,0.00013656,2]
[346319004,1734888638705,-268.889,0.00013656,2]
[346319006,1734888638714,-500.0,0.00013697,2]
[346319008,1734888638723,-364.27335775,0.00013697,2]
[346319010,1734888638732,-500.0,0.00013697,2]
[346319012,1734888638741,-500.0,0.00013697,2]
[346319014,1734888638750,-500.0,0.00013697,2]
[346319016,1734888638759,-500.0,0.00013697,2]
[346319018,1734888638768,-500.0,0.00013697,2]
[346319019,1734888638778,-206.85409164,0.00013697,2]
[346319021,1734888638787,-500.0,0.00013697,2]
[346319023,1734888638797,-500.0,0.00013697,2]
[346319025,1734888638806,-471.60009176,0.00013697,2]
[346319048,1734888639018,-28.39990824,0.00013697,2]
[346319050,1734888639028,-218.10568651,0.00013697,2]
[346319052,1734888639037,-398.54468873,0.00013697,2]
[346319054,1734888639046,-500.0,0.00013697,2]
[346319055,1734888639055,-500.0,0.00013697,2]
[346319057,1734888639064,-500.0,0.00013697,2]
[346319059,1734888639073,-430.58609218,0.00013697,2]
[346319061,1734888639082,-277.94068052,0.00013697,2]
[346319063,1734888639091,-500.0,0.00013697,2]
[346319065,1734888639100,-330.99489209,0.00013697,2]
[346319067,1734888639110,-500.0,0.00013697,2]
[346319069,1734888639119,-500.0,0.00013697,2]
[346319071,1734888639129,-500.0,0.00013697,2]
[346319073,1734888639141,-500.0,0.00013697,2]
[346319075,1734888639150,-500.0,0.00013697,2]
[346319077,1734888639159,-500.0,0.00013697,2]
[346319079,1734888639169,-500.0,0.00013697,2]
[346319081,1734888639179,-327.89337985,0.00013697,2]
[346319083,1734888639190,-172.10662015,0.00013697,2]
[346319085,1734888639201,-500.0,0.00013697,2]
[346319087,1734888639210,-500.0,0.00013697,2]
[346319089,1734888639219,-500.0,0.00013697,2]
[346319091,1734888639228,-500.0,0.00013697,2]
[346319093,1734888639237,-500.0,0.00013697,2]
[346319095,1734888639247,-500.0,0.00013697,2]
[346319097,1734888639256,-500.0,0.00013697,2]
[346319099,1734888639265,-500.0,0.00013697,2]
[346319101,1734888639274,-500.0,0.00013697,2]
[346319103,1734888639283,-500.0,0.00013697,2]
[346319104,1734888639292,-500.0,0.00013697,2]
[346319106,1734888639301,-500.0,0.00013697,2]
[346319108,1734888639311,-500.0,0.00013697,2]
[346319110,1734888639321,-500.0,0.00013697,2]
[346319112,1734888639330,-500.0,0.00013697,2]
[346319114,1734888639339,-229.82332219,0.00013697,2]
[346319116,1734888639348,-152.25728,0.00013698,2]
[346319118,1734888639358,-151.0,0.00013698,2]
[346319120,1734888639367,-152.25728,0.00013698,2]
[346319122,1734888639376,-151.0,0.00013698,2]
[346319124,1734888639385,-127.91602346,0.00013698,2]
[346319127,1734888639402,-373.47166641,0.00013698,2]
[346319129,1734888639411,-500.0,0.00013698,2]
[346319131,1734888639420,-151.0,0.00013698,2]
[346319133,1734888639429,-151.0,0.00013698,2]
[346319135,1734888639438,-500.0,0.00013698,2]
[346319137,1734888639447,-538.26,0.00013698,2]
[346319139,1734888639460,-316.06025989,0.00013698,2]
[346319251,1734888640726,-183.93974011,0.00013698,2]
[346319253,1734888640735,-500.0,0.00013698,2]
[346319255,1734888640744,-500.0,0.00013698,2]
[346319257,1734888640753,-1359.08,0.00013698,2]
[346319259,1734888640762,-500.0,0.00013698,2]
[346319261,1734888640773,-151.0,0.00013698,2]
[346319263,1734888640782,-151.0,0.00013698,2]
[346319265,1734888640791,-151.0,0.00013698,2]
[346319267,1734888640800,-173.175398,0.00013698,2]
[346319269,1734888640810,-151.0,0.00013698,2]
[346319271,1734888640819,-151.0,0.00013698,2]
[346319273,1734888640829,-500.0,0.00013698,2]
[346319275,1734888640838,-151.0,0.00013698,2]
[346319277,1734888640847,-151.0,0.00013698,2]
[346319279,1734888640857,-500.0,0.00013698,2]
[346319281,1734888640866,-671.08,0.00013698,2]
[346319283,1734888640875,-500.0,0.00013698,2]
[346319285,1734888640884,-261.3238441,0.00013698,2]
[346319288,1734888640894,-500.0,0.00013698,2]
[346319290,1734888640908,-1000.0,0.00013698,2]
[346319291,1734888640917,-725.48,0.00013698,2]
[346319294,1734888640928,-515.96673574,0.00013698,2]
[346319296,1734888640938,-500.0,0.00013698,2]
[346319298,1734888640949,-500.0,0.00013698,2]
[346319300,1734888640959,-500.0,0.00013698,2]
[346319302,1734888640968,-500.0,0.00013698,2]
[346319304,1734888640978,-159.32347,0.00013698,2]
[346319306,1734888640988,-159.32347,0.00013698,2]
[346319329,1734888641201,-159.32347,0.00013698,2]
[346319331,1734888641211,-159.32347,0.00013698,2]
[346319333,1734888641220,-159.32347,0.00013698,2]
[346319335,1734888641229,-159.32347,0.00013698,2]
[346319337,1734888641238,-500.0,0.00013698,2]
[346319339,1734888641247,-500.0,0.00013698,2]
[346319341,1734888641258,-777.37,0.00013698,2]
[346319344,1734888641268,-500.0,0.00013698,2]
[346319345,1734888641277,-500.0,0.00013698,2]
[346319347,1734888641287,-500.0,0.00013698,2]
[346319349,1734888641296,-500.0,0.00013698,2]
[346319351,1734888641306,-500.0,0.00013698,2]
[346319354,1734888641317,-151.0,0.00013698,2]
[346319356,1734888641326,-151.0,0.00013698,2]
[346319358,1734888641336,-151.0,0.00013698,2]
[346319360,1734888641348,-151.0,0.00013698,2]
[346319362,1734888641357,-151.0,0.00013698,2]
[346319364,1734888641367,-151.0,0.00013698,2]
[346319366,1734888641376,-500.0,0.00013698,2]
[346319368,1734888641385,-1204.04,0.00013698,2]
[346319370,1734888641395,-500.0,0.00013698,2]
[346319372,1734888641404,-151.0,0.00013698,2]
[346319374,1734888641414,-155.436416,0.00013698,2]
[346319376,1734888641423,-151.0,0.00013698,2]
[346319378,1734888641432,-222.65776,0.00013698,2]
[346319380,1734888641441,-1541.168543,0.00013698,2]
[346319382,1734888641451,-1541.168543,0.00013698,2]
[346319384,1734888641460,-1541.168543,0.00013698,2]
[346319386,1734888641470,-500.0,0.00013698,2]
[346319388,1734888641479,-500.0,0.00013698,2]
[346319390,1734888641489,-500.0,0.00013698,2]
[346319392,1734888641498,-151.0,0.00013698,2]
[346319394,1734888641507,-151.0,0.00013698,2]
[346319396,1734888641516,-500.0,0.00013698,2]
[346319398,1734888641525,-500.0,0.00013698,2]
[346319400,1734888641535,-500.0,0.00013698,2]
[346319402,1734888641544,-286.83811892,0.00013698,2]
[346319404,1734888641553,-500.0,0.00013698,2]
[346319406,1734888641562,-500.0,0.00013698,2]
[346319408,1734888641571,-500.0,0.00013698,2]
[346319410,1734888641581,-621.13643368,0.00013698,2]
[346319412,1734888641591,-500.0,0.00013698,2]
[346319414,1734888641599,-151.0,0.00013698,2]
[346319416,1734888641610,-151.0,0.00013698,2]
[346319418,1734888641619,-151.0,0.00013698,2]